Cogmind - Beta 13 @@@ ROGUE MODE // 2024.04.29 @ 15:09:51 Player: Barbarossa Result: Destroyed by Y-45 Defender with Heavy Assault Rifle Performance ------------- Evolutions (1) 500 Regions Visited (2) 400 Robots Destroyed (36) 180 Value Destroyed (1033) 1033 Prototype IDs (1) 20 Alien Tech Used (0) 0 Bonus (0) 0 TOTAL SCORE: 2133 Bonus ------- None Cogmind --------- Core Integrity 0/400 Matter 454/500 Energy 265/265 System Corruption 1% Temperature Warm (162) Movement Rolling (210) Ox8 Location -9/Materials Parts ------- > --- POWER (1) -------- Reinforced Ion Engine > --- PROPULSION (2) --- Armored Wheel > --- UTILITY (4) ------ Heat Sink Huge Storage Unit High-capacity Matter Pod > --- WEAPON (2) ------- Beam Rifle Improved Medium Laser > --- INVENTORY (25) --- Light Ion Engine Improved Ion Engine Light Treads Light Treads Light Treads Light Treads Light Treads Light Treads Light Treads Armored Wheel Armored Wheel EM Pulse Gun Medium Laser Small Laser Beam Rifle Beam Rifle Improved Medium Laser Improved Medium Laser Improved Medium Laser Improved Medium Laser Heavy Assault Rifle Autogun Datajack Peak State ------------ > --- POWER ------------ Reinforced Ion Engine > --- PROPULSION ------- Compact Wheel Armored Wheel > --- UTILITY ---------- Heat Sink Huge Storage Unit High-capacity Matter Pod Light Armor Plating > --- WEAPON ----------- Improved Medium Laser Heavy Assault Rifle > --- INVENTORY -------- Light Ion Engine Improved Ion Engine Light Treads Light Treads Light Treads Light Treads Light Treads Light Treads Light Treads Armored Wheel Armored Wheel EM Pulse Gun Medium Laser Small Laser Beam Rifle Beam Rifle Beam Rifle Improved Medium Laser Improved Medium Laser Improved Medium Laser Improved Medium Laser Heavy Assault Rifle Autogun Datajack [Rating: 18] Favorites ----------- Power Ion Engine Engine Ion Engine Propulsion Aluminum Leg Leg Aluminum Leg Wheel Compact Wheel Utility Huge Storage Unit Device Heat Sink Storage Huge Storage Unit Protection Light Armor Plating Weapon Light Assault Rifle Energy Gun Small Laser Ballistic Gun Light Assault Rifle Ballistic Cannon Light Cannon Build | -11 -10 -9 ------- Run | Yrd Mat Mat Slots Evolved 2 | . . 2 Power . | . . . Propulsion . | . . . Utility 2 | . . 2 Weapon . | . . . Parts Attached 21 | . 3 18 Power 3 | . 1 2 Engine 3 | . 1 2 Core . | . . . Reactor . | . . . Propulsion 6 | . . 6 Treads . | . . . Leg . | . . . Wheel 6 | . . 6 Hover . | . . . Flight . | . . . Utility 6 | . 2 4 Device 1 | . . 1 Storage 2 | . 1 1 Processor . | . . . Hackware . | . . . Protection 3 | . 1 2 Artifact . | . . . Weapon 6 | . . 6 Energy Gun 2 | . . 2 Energy Cannon . | . . . Ballistic Gun 2 | . . 2 Ballistic Cannon 2 | . . 2 Launcher . | . . . Special Weapon . | . . . Impact Weapon . | . . . Slashing Weapon . | . . . Piercing Weapon . | . . . Special Melee Weapon . | . . . Unidentified Prototypes 1 | . . 1 Parts Lost 13 | . 1 12 Power 2 | . 1 1 Propulsion 5 | . . 5 Utility 2 | . . 2 Weapon 4 | . . 4 Highest Loss Streak 6 | . 1 6 To Critical Strikes . | . . . Average Slot Usage (%) 85 | . 88 82 Engine 10 | . 11 10 Leg 11 | . 28 . Wheel 11 | . . 19 Device 2 | . . 4 Storage 18 | . 14 21 Protection 5 | . 5 5 Energy Gun 9 | . 14 5 Ballistic Gun 10 | . 14 8 Ballistic Cannon 3 | . . 6 Naked Turns . | . . . Heaviest Build 104 | 10 90 104 Greatest Support 32 | 20 20 32 Greatest Overweight (x) 29 | . 4 29 Average Overweight (x) 2 | . 2 3 Largest Inventory Capacity 25 | 8 25 25 Average Capacity 23 | 8 22 25 Most Carried 25 | 6 9 25 Average Carried 12 | 6 7 15 Final Capacity 25 | 8 25 25 Final Carried 23 | 6 9 23 Class Distribution -------------------- 64% | Mutant 35% | Scavenger-Mutant Dominant Class ---------------- Mutant | -10/Materials Scavenger-Mutant | -9/Materials Resources | -11 -10 -9 ----------- Run | Yrd Mat Mat Matter Collected 888 | 200 . 688 Remotely . | . . . Salvage Created 1298 | . 182 1116 Parts 85 | . 12 73 Haulers Intercepted 1 | . . 1 Recyclers Shooed . | . . . Parts Field Recycled . | . . . Retrieved Matter . | . . . Parts Self-Destructed . | . . . Prevented . | . . . Kills | -11 -10 -9 ------- Run | Yrd Mat Mat Combat Hostiles Destroyed 30 | . 4 26 Guns 19 | . 4 15 Cannons 11 | . . 11 Classes Destroyed 8 | . 2 6 Hauler 1 | . . 1 Recycler 2 | . . 2 Operator 1 | . . 1 Watcher 2 | . 2 . Swarmer 6 | . . 6 Grunt 15 | . 4 11 Brawler 3 | . . 3 Sentry 6 | . . 6 Best Kill Streak 7 | . 3 7 Combat Bots Only 6 | . 3 6 Max Kills in Single Turn 2 | . 1 2 Gunslinging 1 | . . 1 Exploded . | . . . Melee . | . . . Uniques/NPCs Destroyed . | . . . Combat | -11 -10 -9 -------- Run | Yrd Mat Mat Hostile Shots Fired 216 | . 35 181 Missed 57 | . 9 48 Damage Taken 2068 | . 304 1764 Core 499 | . 87 412 Absorbed by Shields . | . . . Core Remaining (%) 82 | 100 65 . Volleys Fired 107 | . 27 80 Largest 2 | . 2 2 Hottest 112 | . 60 112 Shots Fired 199 | . 54 145 Gun 149 | . 54 95 Cannon 50 | . . 50 Launcher . | . . . Special . | . . . Kinetic 134 | . 27 107 Thermal 65 | . 27 38 Explosive . | . . . Electromagnetic . | . . . Robot Hit Streak 15 | . 13 15 Robot Miss Streak 5 | . 4 5 Penetration Max . | . . . Secondary Targets 3 | . . 3 Max Gunslinging Chain 1 | . . 1 Shots Hit Robots 132 | . 35 97 Core Hits 56 | . 15 41 Critical Kills 1 | . . 1 Critical Parts Destroyed . | . . . Critical Strikes 5 | . . 5 Burn 2 | . . 2 Destroy 1 | . . 1 Blast 2 | . . 2 Melee Attacks . | . . . Impact . | . . . Slashing . | . . . Piercing . | . . . Sneak Attacks . | . . . Combat Hostiles . | . . . Follow-up Attacks . | . . . Damage Inflicted 1932 | . 320 1612 Guns 1457 | . 320 1137 Cannons 475 | . . 475 Explosions . | . . . Melee . | . . . Ramming . | . . . Kinetic 1252 | . 155 1097 Thermal 680 | . 165 515 Explosive . | . . . Electromagnetic . | . . . Impact . | . . . Slashing . | . . . Piercing . | . . . Highest Corruption 1 | . . 1 Average Corruption 1 | . . 1 Corruption Purged . | . . . Corruption Blocked . | . . . Effects 4 | . . 4 Matter Fused 1 | . . 1 Heat Flow Errors 1 | . . 1 Data Loss (minor) 1 | . . 1 Weapon Failures 1 | . . 1 Overload Shots . | . . . Overflow Damage . | . . . Projectiles . | . . . Explosions . | . . . Melee . | . . . Knockbacks 2 | . . 2 Impact . | . . . Kinetic 1 | . . 1 Secondary 1 | . . 1 Self-Inflicted Damage . | . . . Shots . | . . . Rammed . | . . . Targets Rammed . | . . . Kicked . | . . . Crushed . | . . . Highest Temperature 212 | . 212 153 Average Temperature 51 | . 79 37 Received Heat Transfer 777 | . 168 609 Siege Activations . | . . . Robots Corrupted . | . . . Combat Hostiles . | . . . Parts Fried . | . . . Impact Corruptions . | . . . Robots Melted . | . . . Combat Hostiles . | . . . Parts Melted 2 | . . 2 Heat Transferred 1670 | . 375 1295 Parts Sabotaged . | . . . Parts Stolen . | . . . Parts Stripped . | . . . Power Chain Reactions . | . . . Alert | -11 -10 -9 ------- Run | Yrd Mat Mat Peak Influence 355 | . 129 355 Initial . | . . . Average 147 | . 60 210 Maximum Alert Level 1 | . . 1 Low Security (%) 68 | 100 100 46 Level 1 31 | . . 53 Level 2 . | . . . Level 3 . | . . . Level 4 . | . . . Level 5 . | . . . High Security . | . . . Max Security . | . . . Squads Dispatched 2 | . . 2 Investigation 1 | . . 1 Extermination . | . . . Reinforcement 1 | . . 1 Assault . | . . . Garrison . | . . . Intercept . | . . . Searches Triggered . | . . . Construction Impeded . | . . . Haulers Reinforced . | . . . Active Scanning Responses . | . . . Cargo Convoy Interrupts . | . . . Stealth | -11 -10 -9 --------- Run | Yrd Mat Mat Distress Signals 3 | . 1 2 Communications Jammed . | . . . Distress Signals . | . . . Times Spotted 41 | . 8 33 Peak Tracking Total 7 | . 4 7 Tactical Retreats 2 | . . 2 Traps | -11 -10 -9 ------- Run | Yrd Mat Mat Traps Triggered 1 | . . 1 Indirectly . | . . . Trap Hack Attempts . | . . . Triggered . | . . . Disarmed . | . . . Reprogrammed . | . . . Reused . | . . . Traps Extracted . | . . . Installed . | . . . Triggered . | . . . Machines | -11 -10 -9 ---------- Run | Yrd Mat Mat Machines Disabled 1 | . . 1 Max in Single Turn 1 | . . 1 Machines Repaired . | . . . Machines Dismantled . | . . . Machines Sabotaged . | . . . Overloaded Fab Kills . | . . . Hacking | -11 -10 -9 --------- Run | Yrd Mat Mat Machines Accessed 2 | . 1 1 Terminals 2 | . 1 1 Fabricators . | . . . Repair Stations . | . . . Recycling Units . | . . . Scanalyzers . | . . . Garrison Access . | . . . Total Hacks 6 | . 2 4 Successful 3 | . 1 2 Failed 3 | . 1 2 Catastrophic . | . . . Database Lockouts . | . . . Manual 4 | . 2 2 Terminals 6 | . 2 4 Fabricators . | . . . Repair Stations . | . . . Recycling Units . | . . . Scanalyzers . | . . . Garrison Access . | . . . Terminal Hacks 1 | . . 1 Unreport Threat 1 | . . 1 Fabricator Hacks . | . . . Repair Station Hacks . | . . . Recycling Unit Hacks . | . . . Scanalyzer . | . . . Garrison Access Hacks . | . . . Unauthorized Hacks 2 | . 1 1 Terminals 2 | . 1 1 Botnet 2 | . 1 1 Fabricators . | . . . Repair Stations . | . . . Recycling Units . | . . . Scanalyzers . | . . . Garrison Access . | . . . Data Cores Recovered . | . . . Used . | . . . Hacking Detections 2 | . 1 1 Full Trace Events . | . . . Feedback Events . | . . . Feedback Blocked . | . . . Robot Schematics Acquired . | . . . Robots Built . | . . . Authchips . | . . . Time . | . . . Total Robot Build Rating . | . . . Part Schematics Acquired . | . . . Parts Built . | . . . Authchips . | . . . Time . | . . . Total Part Build Rating . | . . . Parts Repaired . | . . . Time . | . . . Parts Recycled . | . . . Recycled Matter . | . . . Retrieved Matter . | . . . Retrieved Components . | . . . Parts Scanalyzed . | . . . Part Schematics Acquired . | . . . Parts Damaged . | . . . Bothacking | -11 -10 -9 ------------ Run | Yrd Mat Mat Used RIF Installer . | . . . Robots Hacked . | . . . Non-combat . | . . . Combat . | . . . Robot Hacks Applied . | . . . Relay Couplers Released . | . . . Fabnet Peak Effective % . | . . . Robots Rewired . | . . . Allies Hacked . | . . . Hacks Repelled . | . . . Allies | -11 -10 -9 -------- Run | Yrd Mat Mat Total Allies . | . . . Largest Group . | . . . Highest-Rated Group . | . . . Highest-Rated Ally . | . . . Total Orders . | . . . Ally Attacks . | . . . Total Damage . | . . . Kills . | . . . Allies Corrupted . | . . . Allies Melted . | . . . Intel | -11 -10 -9 ------- Run | Yrd Mat Mat Robot Analysis Total . | . . . Derelict Logs Recovered . | . . . Drone Launches . | . . . Drone Recoveries . | . . . Exploration | -11 -10 -9 ------------- Run | Yrd Mat Mat Turns Passed 1204 | 4 503 697 Spaces Moved 405 | 4 144 257 Core 2 | . . 2 Treads . | . . . Legs 148 | 4 144 . Wheels 255 | . . 255 Hover . | . . . Flight . | . . . Fastest Speed 120 | 120 120 130 Average Speed 199 | 120 289 150 Slowest Speed 1500 | 120 400 1500 Overloaded Moves . | . . . Propulsion Burnouts . | . . . Robots Hopped . | . . . Cave-ins Triggered . | . . . Exploration Rate (%) 20 | 2 35 25 Regions Visited 2 Branch Regions . Pre-discovered Areas . | . . . Known Exits Taken . | . . . Unknown Exits Taken 2 | 1 1 . Scrap Searched . | . . . Spaces Dug . | . . . Terrain Destroyed . | . . . Melee . | . . . Projectile . | . . . AOE . | . . . Terrain Rammed . | . . . Walls Destroyed . | . . . Machines Disabled . | . . . Actions | -11 -10 -9 --------- Run | Yrd Mat Mat Total 607 | 3 184 420 Wait 45 | . 6 39 Move 403 | 3 143 257 Hop . | . . . Pick Up 26 | . 4 22 Fast Attach 8 | . 2 6 Attach 9 | . 1 8 Detach . | . . . Swap 4 | . . 4 Drop 5 | . 1 4 Fire 107 | . 27 80 Melee . | . . . Ram . | . . . Kick . | . . . Crush . | . . . Escape Stasis . | . . . Rewire . | . . . Trap . | . . . Miscellaneous . | . . . Route ------- -11/Scrapyard -10/Materials (discovered 2 exits: *Mat x2) -9/Materials History --------- Turn | Location | Event 1 | -11/Scrapyard | Discovered new exit (range 0) 5 | -11/Scrapyard | Entered Materials 73 | -10/Materials | Discovered new exit (range 14) 304 | -10/Materials | Build established: Mutant 431 | -10/Materials | Discovered new exit (range 3) 508 | -10/Materials | Entered another Materials area 508 | -9/Materials | Evolved 2 slots: Utility x2 724 | -9/Materials | Core integrity fell below 50% 745 | -9/Materials | Lost 6 parts (1p2n1u2w) 1067 | -9/Materials | Core integrity fell below 20% 1070 | -9/Materials | Build established: Scavenger-Mutant 1205 | -9/Materials | Destroyed by Y-45 Defender with Heavy Assault Rifle Last Messages --------------- 01130_ System corrupted: Heat flow error (+112). 01131_ U-05 Engineer builds a Door. 01156_ Critical hit (Burn: +37). 01173_ Ion Engine melted. 01173_ G-34 Mercenary destroyed. 01176_ K-01 Serf collects debris. 01187_ Hvy. Assault Rifle destroyed. 01191_ K-01 Serf collects debris. 01193_ Y-45 Defender suffers critical hit (Burn). 01194_ Com. Wheel destroyed. 01199_ Critical hit (Burn: +37). 01199_ System corrupted: Imp. Medium Laser failed to cycle. 01202_ Critical hit (Burn: +37). 01202_ Lgt. Armor Plating melted. 01202_ Y-45 Defender destroyed. 01202_ Switching to secondary target: Y-45 Defender. 01204_ K-01 Serf collects debris. Map ----- +----------------------------------------------------+ | ????????????????????+ #??????????????????? | | ????????????????????# #????###???????????? | | ????????????????????# #??? #???????????? | | ????????????????????########/##??? #???????????? | | ???????????????????????????# #??? #???????????? | | ???????????????????? [ ????# #??? #???????????? | | ???????????????????? ""??# ### """ #???????????? | | ???????????????????# """ # # """ #???????????? | | ???????????????????# / + """ #???????????? | | ????????????????????######## # #???????????? | | ????????????????????######## # """ #???????????? | | ????????????????????# ## #?""" #???????????? | | ????????????????????# #?""" #???????????? | | ????????????????????# %* #?? #???????????? | | ????????????????????# !=% #??###????????????? | | ????????????????????# ##+####????????????????? | | ????????????????????## k## = #?????????+??????? | | ?????????????????????# [## #????????? ??????? | | ?????????????????????# =%## #????????? ??????? | | ?????????????????????# !## ########## #?????? | | ????????????????????## ######### =/ # #?????? | | ????????????????????# ! # # =/ # #?????? | | ????????????????????# u%Y# # # #?????? | | ????????????????????# # # [ # #?????? | | ????????????????????# # #!%[ = # #????? | | ????????????????????# @# #+##+#### ##### | | ????????????????????## ## # [*= !! | | ?????????????????????# ## + = [ * | | ?????????????????????# ## # ! % | | ?????????????????????# ## ####+########## | | ?????????????????????# !## = # #????????? | | ?????????????????????# %##!!! # #????????? | | ?????????????????????# +/=! # "S #????????? | | ?????????????????????# ##* # """ #????????? | | ?????????????????????# ######### "" #????????? | | ?????????????????????# #???????# #????????? | | ???????????????????? #???????#+######????????? | | ??????????????????? #???????# #?##########??? | | ?????????????????? #???????# #?# #??? | | ?????????????????+#### #???????# #?# #??? | | ????????????????#????# #???????# #?# #??? | | ?????????????????????# #?????### ### +??? | | ?????????????????????# #?????# # #??? | | ?????????????????????# #?????# # #??? | | ?????????????????????# #?????# + #??? | | ?????????????????????# ####### # #??? | | ?????????????????????# # #??? | | ?????????????????????# ########%! ###########??? | | ????????????????????????????????# #????????????? | | ????????????????????????????????# #????????????? | +----------------------------------------------------+ Best States ------------- Heat Dissipation 38 Energy Generation 12 Energy Capacity 265 Matter Stores 500 Matter Capacity 500 Sight Range 16 Terrain Scan Density 10 Armor Coverage 150 Evasion (%) 55 Item Schematics ----------------- None Robot Schematics ------------------ None Fabricated ------------ Nothing Alien Tech Used ----------------- None Achievements -------------- None Challenges ------------ None Game ------ Seed ChipAlloyReconstructor Manual? 0 Play Time 00:11:35 Cumulative 135.2 hours Start 2024.04.29 @ 15:03:09 End 2024.04.29 @ 15:09:51 Sessions 1 Manual Loads 0 Difficulty Rogue Special Mode None Game No. 261 Rogue 261 Adventurer 0 Explorer 0 Win Type - Total 0 Types 0/0/0/0/0/0/0/0/0 Lore% 35 Gallery% 48 Achievement% 34 Wizard Run 0 Options --------- Layout 1 ASCII 0 Keyboard 0 Movement Mouse Keybinds 0 Fullscreen 1 Font 24/Smallcaps Map View 50x40 Zoom Use 0% Tactical HUD 1 Map Filters NONE Filters NONE Steam 1 RUN: 5fb2e17a-894a-4b0e-88b1-1c29d4bfce45